Cogmind - Beta 13 @@@ ROGUE MODE // 2024.03.10 @ 15:18:34 Player: rCartos Result: Destroyed by X-57 Shotgunner with High-powered Shotgun Performance ------------- Evolutions (2) 1000 Regions Visited (5) 1000 Robots Destroyed (19) 95 Value Destroyed (470) 470 Prototype IDs (0) 0 Alien Tech Used (0) 0 Bonus (95) 95 TOTAL SCORE: 2660 Bonus ------- Follower Combat Kills 95 Cogmind --------- Core Integrity 0/550 Matter 234/300 Energy 85/100 System Corruption 0% Temperature Cool (27) Movement Core (350) Ox6 Location -8/Materials Parts ------- > --- POWER (1) -------- (None) > --- PROPULSION (4) --- (None) > --- UTILITY (4) ------ Large Storage Unit > --- WEAPON (2) ------- (None) > --- INVENTORY (15) --- Light Assault Rifle Peak State ------------ > --- POWER ------------ Improved Ion Engine > --- PROPULSION ------- Armored Wheel Armored Wheel Armored Wheel Armored Wheel > --- UTILITY ---------- Large Storage Unit Medium Armor Plating Medium Armor Plating Medium Armor Plating > --- WEAPON ----------- Beam Rifle Heavy Assault Rifle > --- INVENTORY -------- Improved Ion Engine Small Storage Unit Light Assault Rifle Light Assault Rifle [Rating: 21] Favorites ----------- Power Improved Ion Engine Engine Improved Ion Engine Power Core Light Nuclear Core Propulsion Armored Wheel Leg Aluminum Leg Wheel Armored Wheel Utility Medium Armor Plating Storage Small Storage Unit Protection Medium Armor Plating Weapon Light Assault Rifle Energy Gun Beam Rifle Ballistic Gun Light Assault Rifle Build | -11 -10 -10 -9 -9 -8 ------- Run | Yrd Mat Min Mat Min Mat Slots Evolved 4 | . . . 2 . 2 Power . | . . . . . . Propulsion 2 | . . . 2 . . Utility 2 | . . . . . 2 Weapon . | . . . . . . Parts Attached 39 | 6 4 4 8 . 17 Power 5 | 1 1 1 1 . 1 Engine 4 | 1 1 . 1 . 1 Core 1 | . . 1 . . . Reactor . | . . . . . . Propulsion 13 | 2 2 . 2 . 7 Treads . | . . . . . . Leg 2 | 2 . . . . . Wheel 11 | . 2 . 2 . 7 Hover . | . . . . . . Flight . | . . . . . . Utility 7 | 1 1 1 1 . 3 Device . | . . . . . . Storage 3 | 1 . . 1 . 1 Processor . | . . . . . . Hackware . | . . . . . . Protection 4 | . 1 1 . . 2 Artifact . | . . . . . . Weapon 14 | 2 . 2 4 . 6 Energy Gun 5 | . . . 2 . 3 Energy Cannon . | . . . . . . Ballistic Gun 9 | 2 . 2 2 . 3 Ballistic Cannon . | . . . . . . Launcher . | . . . . . . Special Weapon . | . . . . . . Impact Weapon . | . . . . . . Slashing Weapon . | . . . . . . Piercing Weapon . | . . . . . . Special Melee Weapon . | . . . . . . Unidentified Prototypes . | . . . . . . Parts Lost 24 | . . 1 2 . 21 Power 3 | . . . 1 . 2 Propulsion 9 | . . . . . 9 Utility 4 | . . . . . 4 Weapon 8 | . . 1 1 . 6 Highest Loss Streak 21 | . . 1 2 . 21 To Critical Strikes . | . . . . . . Average Slot Usage (%) 97 | . 96 99 99 100 90 Engine 5 | . 14 1 2 11 8 Core 6 | . . 12 8 . . Wheel 34 | . 20 28 44 44 33 Storage 12 | . 14 14 11 11 10 Protection 14 | . 12 14 11 11 21 Energy Gun 4 | . . . 11 11 4 Ballistic Gun 18 | . 28 27 11 11 12 Naked Turns . | . . . . . . Heaviest Build 54 | 11 22 22 40 40 54 Greatest Support 52 | 20 24 24 48 48 52 Greatest Overweight (x) 8 | 1 1 . . . 8 Average Overweight (x) . | . . . . . 1 Largest Inventory Capacity 15 | 8 8 8 15 15 15 Average Capacity 10 | 7 8 8 11 15 15 Most Carried 12 | 6 7 8 6 6 12 Average Carried 5 | 1 5 6 5 5 7 Final Capacity 15 | 8 8 8 15 15 15 Final Carried 7 | 1 7 7 5 6 1 Class Distribution -------------------- 100% | Mutant Dominant Class ---------------- Mutant | -10/Materials Mutant | -10/Mines Mutant | -9/Materials Mutant | -9/Mines Mutant | -8/Materials Resources | -11 -10 -10 -9 -9 -8 ----------- Run | Yrd Mat Min Mat Min Mat Matter Collected 639 | 178 . 281 101 21 58 Remotely . | . . . . . . Salvage Created 648 | . . 266 165 50 167 Parts 47 | . . 9 17 10 11 Haulers Intercepted . | . . . . . . Recyclers Shooed 3 | . 1 2 . . . Parts Field Recycled . | . . . . . . Retrieved Matter . | . . . . . . Parts Self-Destructed . | . . . . . . Prevented . | . . . . . . Kills | -11 -10 -10 -9 -9 -8 ------- Run | Yrd Mat Min Mat Min Mat Combat Hostiles Destroyed 18 | . . 6 5 4 3 Guns 18 | . . 6 5 4 3 Classes Destroyed 4 | . . 3 1 . . Recycler 1 | . . 1 . . . Swarmer 9 | . . 3 2 4 . Grunt 4 | . . 3 1 . . Sentry 5 | . . . 2 . 3 Best Kill Streak 3 | . . 3 2 3 1 Combat Bots Only 3 | . . 3 2 3 1 Max Kills in Single Turn 1 | . . 1 1 1 1 Gunslinging . | . . . . . . Exploded . | . . . . . . Melee . | . . . . . . Uniques/NPCs Destroyed . | . . . . . . Combat | -11 -10 -10 -9 -9 -8 -------- Run | Yrd Mat Min Mat Min Mat Hostile Shots Fired 307 | . 4 53 33 16 201 Missed 105 | . 1 19 7 4 74 Damage Taken 2858 | . 45 375 326 100 2012 Core 649 | . . 68 23 . 558 Absorbed by Shields . | . . . . . . Core Remaining (%) 88 | 100 . 72 . 94 . Volleys Fired 80 | 11 1 27 20 7 14 Largest 2 | 2 2 2 2 2 2 Hottest 121 | 40 40 40 121 79 79 Shots Fired 149 | 22 2 46 37 14 28 Gun 149 | 22 2 46 37 14 28 Cannon . | . . . . . . Launcher . | . . . . . . Special . | . . . . . . Kinetic 117 | 22 2 46 17 7 23 Thermal 32 | . . . 20 7 5 Explosive . | . . . . . . Electromagnetic . | . . . . . . Robot Hit Streak 10 | 3 . 5 6 9 10 Robot Miss Streak 6 | 3 2 6 6 3 1 Penetration Max . | . . . . . . Secondary Targets 4 | . . 2 . 2 . Max Gunslinging Chain 1 | . . 1 . 1 . Shots Hit Robots 81 | 11 . 22 19 6 23 Core Hits 36 | 1 1 12 8 5 9 Critical Kills . | . . . . . . Critical Parts Destroyed . | . . . . . . Critical Strikes 3 | . . . . . 3 Burn 3 | . . . . . 3 Melee Attacks . | . . . . . . Impact . | . . . . . . Slashing . | . . . . . . Piercing . | . . . . . . Sneak Attacks . | . . . . . . Combat Hostiles . | . . . . . . Follow-up Attacks . | . . . . . . Damage Inflicted 1063 | 87 9 301 262 78 326 Guns 1034 | 87 . 282 261 78 326 Cannons . | . . . . . . Explosions . | . . . . . . Melee . | . . . . . . Ramming 29 | . 9 19 1 . . Kinetic 754 | 87 . 282 110 8 267 Thermal 280 | . . . 151 70 59 Explosive . | . . . . . . Electromagnetic . | . . . . . . Impact . | . . . . . . Slashing . | . . . . . . Piercing . | . . . . . . Highest Corruption . | . . . . . . Average Corruption . | . . . . . . Corruption Purged . | . . . . . . Corruption Blocked . | . . . . . . Overload Shots . | . . . . . . Overflow Damage . | . . . . . . Projectiles . | . . . . . . Explosions . | . . . . . . Melee . | . . . . . . Knockbacks 1 | . 1 . . . . Impact 1 | . 1 . . . . Kinetic . | . . . . . . Secondary . | . . . . . . Self-Inflicted Damage 13 | . 4 9 . . . Shots . | . . . . . . Rammed 7 | . 2 4 1 . . Targets Rammed 7 | . 2 4 1 . . Kicked . | . . . . . . Crushed . | . . . . . . Highest Temperature 328 | . 8 51 328 105 108 Average Temperature 70 | . 6 20 121 44 44 Received Heat Transfer 525 | . 24 126 90 6 279 Siege Activations . | . . . . . . Robots Corrupted . | . . . . . . Combat Hostiles . | . . . . . . Parts Fried . | . . . . . . Impact Corruptions . | . . . . . . Robots Melted . | . . . . . . Combat Hostiles . | . . . . . . Parts Melted 5 | . . . 2 . 3 Heat Transferred 925 | . . . 370 185 370 Parts Sabotaged . | . . . . . . Parts Stolen . | . . . . . . Parts Stripped . | . . . . . . Power Chain Reactions . | . . . . . . Alert | -11 -10 -10 -9 -9 -8 ------- Run | Yrd Mat Min Mat Min Mat Peak Influence 240 | . 30 184 193 240 228 Initial 93 | . . 11 18 75 93 Average 101 | . 3 98 107 150 153 Maximum Alert Level 1 | . . . . 1 1 Low Security (%) 92 | 100 100 100 100 65 87 Level 1 7 | . . . . 34 12 Level 2 . | . . . . . . Level 3 . | . . . . . . Level 4 . | . . . . . . Level 5 . | . . . . . . High Security . | . . . . . . Max Security . | . . . . . . Squads Dispatched 3 | . 1 . . . 2 Investigation . | . . . . . . Extermination . | . . . . . . Reinforcement 3 | . 1 . . . 2 Assault . | . . . . . . Garrison . | . . . . . . Intercept . | . . . . . . Searches Triggered . | . . . . . . Construction Impeded . | . . . . . . Haulers Reinforced . | . . . . . . Active Scanning Responses . | . . . . . . Cargo Convoy Interrupts . | . . . . . . Stealth | -11 -10 -10 -9 -9 -8 --------- Run | Yrd Mat Min Mat Min Mat Distress Signals 2 | . . . 1 . 1 Communications Jammed . | . . . . . . Distress Signals . | . . . . . . Times Spotted 52 | . 6 10 10 9 17 Peak Tracking Total 11 | . 6 3 6 4 11 Tactical Retreats 4 | . . 1 . 3 . Traps | -11 -10 -10 -9 -9 -8 ------- Run | Yrd Mat Min Mat Min Mat Traps Triggered . | . . . . . . Indirectly . | . . . . . . Trap Hack Attempts . | . . . . . . Triggered . | . . . . . . Disarmed . | . . . . . . Reprogrammed . | . . . . . . Reused . | . . . . . . Traps Extracted . | . . . . . . Installed . | . . . . . . Triggered . | . . . . . . Machines | -11 -10 -10 -9 -9 -8 ---------- Run | Yrd Mat Min Mat Min Mat Machines Disabled . | . . . . . . Max in Single Turn . | . . . . . . Machines Repaired . | . . . . . . Machines Dismantled . | . . . . . . Machines Sabotaged . | . . . . . . Overloaded Fab Kills . | . . . . . . Hacking | -11 -10 -10 -9 -9 -8 --------- Run | Yrd Mat Min Mat Min Mat Machines Accessed 2 | . 1 . 1 . . Terminals 2 | . 1 . 1 . . Fabricators . | . . . . . . Repair Stations . | . . . . . . Recycling Units . | . . . . . . Scanalyzers . | . . . . . . Garrison Access . | . . . . . . Total Hacks 4 | . 2 . 2 . . Successful 2 | . 1 . 1 . . Failed 2 | . 1 . 1 . . Catastrophic . | . . . . . . Database Lockouts . | . . . . . . Manual 1 | . 1 . . . . Terminals 4 | . 2 . 2 . . Fabricators . | . . . . . . Repair Stations . | . . . . . . Recycling Units . | . . . . . . Scanalyzers . | . . . . . . Garrison Access . | . . . . . . Terminal Hacks 2 | . 1 . 1 . . Zone Layout 2 | . 1 . 1 . . Fabricator Hacks . | . . . . . . Repair Station Hacks . | . . . . . . Recycling Unit Hacks . | . . . . . . Scanalyzer . | . . . . . . Garrison Access Hacks . | . . . . . . Unauthorized Hacks . | . . . . . . Terminals . | . . . . . . Fabricators . | . . . . . . Repair Stations . | . . . . . . Recycling Units . | . . . . . . Scanalyzers . | . . . . . . Garrison Access . | . . . . . . Data Cores Recovered . | . . . . . . Used . | . . . . . . Hacking Detections 1 | . . . 1 . . Full Trace Events . | . . . . . . Feedback Events . | . . . . . . Feedback Blocked . | . . . . . . Robot Schematics Acquired . | . . . . . . Robots Built . | . . . . . . Authchips . | . . . . . . Time . | . . . . . . Total Robot Build Rating . | . . . . . . Part Schematics Acquired . | . . . . . . Parts Built . | . . . . . . Authchips . | . . . . . . Time . | . . . . . . Total Part Build Rating . | . . . . . . Parts Repaired . | . . . . . . Time . | . . . . . . Parts Recycled . | . . . . . . Recycled Matter . | . . . . . . Retrieved Matter . | . . . . . . Retrieved Components . | . . . . . . Parts Scanalyzed . | . . . . . . Part Schematics Acquired . | . . . . . . Parts Damaged . | . . . . . . Bothacking | -11 -10 -10 -9 -9 -8 ------------ Run | Yrd Mat Min Mat Min Mat Used RIF Installer . | . . . . . . Robots Hacked . | . . . . . . Non-combat . | . . . . . . Combat . | . . . . . . Robot Hacks Applied . | . . . . . . Relay Couplers Released . | . . . . . . Fabnet Peak Effective % . | . . . . . . Robots Rewired . | . . . . . . Allies Hacked . | . . . . . . Hacks Repelled . | . . . . . . Allies | -11 -10 -10 -9 -9 -8 -------- Run | Yrd Mat Min Mat Min Mat Total Allies 3 | . . 3 . . . Largest Group 3 | . . 3 . . . Highest-Rated Group 40 | . . 40 . . . Highest-Rated Ally 16 | . . 16 . . . Total Orders 1 | . . 1 . . . FOLLOW 1 | . . 1 . . . Ally Attacks 29 | . . 29 . . . Total Damage 433 | . . 433 . . . Kills 3 | . . 3 . . . Allies Corrupted . | . . . . . . Allies Melted . | . . . . . . Intel | -11 -10 -10 -9 -9 -8 ------- Run | Yrd Mat Min Mat Min Mat Robot Analysis Total . | . . . . . . Derelict Logs Recovered 3 | . . 2 . 1 . Drone Launches . | . . . . . . Drone Recoveries . | . . . . . . Exploration | -11 -10 -10 -9 -9 -8 ------------- Run | Yrd Mat Min Mat Min Mat Turns Passed 1338 | 133 90 454 205 221 235 Spaces Moved 1041 | 77 72 388 136 222 146 Core 22 | 19 . . . . 3 Treads . | . . . . . . Legs 68 | 58 10 . . . . Wheels 951 | . 62 388 136 222 143 Hover . | . . . . . . Flight . | . . . . . . Fastest Speed 50 | 50 90 90 90 90 82 Average Speed 95 | 114 97 90 90 90 109 Slowest Speed 450 | 120 190 90 90 90 450 Overloaded Moves . | . . . . . . Propulsion Burnouts . | . . . . . . Robots Hopped . | . . . . . . Cave-ins Triggered . | . . . . . . Exploration Rate (%) 26 | 6 15 54 17 47 17 Regions Visited 5 Branch Regions 2 Pre-discovered Areas . | . . . . . . Known Exits Taken . | . . . . . . Unknown Exits Taken 5 | 1 1 1 1 1 . Scrap Searched 2 | . . 2 . . . Spaces Dug . | . . . . . . Terrain Destroyed . | . . . . . . Melee . | . . . . . . Projectile . | . . . . . . AOE . | . . . . . . Terrain Rammed . | . . . . . . Walls Destroyed . | . . . . . . Machines Disabled . | . . . . . . Actions | -11 -10 -10 -9 -9 -8 --------- Run | Yrd Mat Min Mat Min Mat Total 1249 | 102 91 451 181 229 195 Wait 43 | . . 22 13 . 8 Move 1036 | 76 71 387 135 221 146 Hop . | . . . . . . Pick Up 35 | 8 10 4 3 1 9 Fast Attach . | . . . . . . Attach 30 | 6 3 3 4 . 14 Detach . | . . . . . . Swap 9 | . 1 1 4 . 3 Drop 9 | 1 3 3 1 . 1 Fire 80 | 11 1 27 20 7 14 Melee . | . . . . . . Ram 7 | . 2 4 1 . . Kick . | . . . . . . Crush . | . . . . . . Escape Stasis . | . . . . . . Rewire . | . . . . . . Trap . | . . . . . . Miscellaneous . | . . . . . . Route ------- -11/Scrapyard -10/Materials -10/Mines -9/Materials -9/Mines -8/Materials (discovered 1 exit: Fac) History --------- Turn | Location | Event 18 | -11/Scrapyard | Discovered new exit (range 16) 134 | -11/Scrapyard | Entered Materials 200 | -10/Materials | Discovered new exit (range 14) 224 | -10/Materials | Entered Mines 303 | -10/Mines | Build established: Mutant 350 | -10/Mines | Learned 2 Materials zone layouts 390 | -10/Mines | Assisted by bots powering up and referring to "LRC-V3" 392 | -10/Mines | Learned Materials garrison access intel 623 | -10/Mines | Discovered new exit (range 8) 678 | -10/Mines | Entered Materials 678 | -9/Materials | Evolved 2 slots: Propulsion x2 692 | -9/Materials | Lost 3 allies 872 | -9/Materials | Discovered new exit (range 10) 883 | -9/Materials | Entered Mines 1066 | -9/Mines | Received a Rocket Launcher from a helpful Derelict 1071 | -9/Mines | Learned location of 1 exit from Materials 1095 | -9/Mines | Discovered new exit (range 13) 1104 | -9/Mines | Entered Materials 1104 | -8/Materials | Evolved 2 slots: Utility x2 1105 | -8/Materials | Identified exit to Factory 1106 | -8/Materials | Loaded intel: 1 garrison access location 1332 | -8/Materials | Core integrity fell below 50% 1337 | -8/Materials | Core integrity fell below 20% 1339 | -8/Materials | Destroyed by X-57 Shotgunner with High-powered Shotgun Last Messages --------------- K-01 Serf collects debris. Wheel destroyed. M-28 Smith repairs X-57 Shotgunner. K-01 Serf collects debris. S-10 Pest destroyed. Arm. Wheel destroyed. Critical hit (Burn: +37). Arm. Wheel destroyed. Wheel destroyed. K-01 Serf collects debris. Critical hit (Burn: +37). Knocked back. K-01 Serf collects debris. Penetrated by Slug. Imp. Ion Engine destroyed. Critical hit (Blast). Beam Rifle destroyed. M-28 Smith repairs G-47 Trooper. Sml. Storage Unit destroyed. K-01 Serf collects debris. Map ----- +----------------------------------------------------+ | ??????????????????????????????????? | | ??????????????????????????????????? | | ??????????????????????????????????? | | ??????????????????????????????????? | | ??????????????????????????????????? | | ??????????????????????????????????? | | ??????????????????????????????????? | | ??????????????????????????????????? | | ??????????????????????????????????? | | ?????????????????????? ???????????? | | ????????????????????+ ???????????? | | ????????????????????# ??????????? | | ????????????????????# ??????????? | | ????????????????????# ??????????? | | ????????????????????# ??????????? | | ??????????????????### ??????????? | | ??????????????????? # ??????????? | | ???????????????????? ???????###? | | ????????????????????# ########;## | | ????????????????????# ## # | | ???????????????????## ## """# | | ??????????########## # R"# | | ????????? %# Hg"""# | | ????????? ] " %x k[ # | | ????????? w g#ggsx !# | | ?????????????###+### u@ m" [% # | | ???????????????????## #; g = %# | | ????????????????????# ## % g # | | ????????????????????# "########## | | ????????????????????# ##????????? | | ????????????????????# % "#????????? | | ????????????????????# "#????????? | | ???????????????????## ##????????? | | ????????????######## #????????? | | ????????????# % #????????? | | ????????????# ! #????????? | | ????????????# #????????? | | ????????????# #### % #????????? | | ????????????# #??###+#"####?????? | | ????????????# #??# !#?????? | | ??#######???# #??# % #?????? | | ??# #???# #??# """ #?????? | | ??# """ ##### #??# """"" #?????? | | ??# """ + #??# """"" #?????? | | ??# """ ######+##### """"" #?????? | | ??# ## "T" ! # """ #?????? | | ??# """ ## #[ ?? #?????? | | ??# """ ## [ = # ??????????? | | ??# """ ## [ = ###????????????? | | ??# ## """ #??????????????? | +----------------------------------------------------+ Best States ------------- Heat Dissipation 31 Energy Generation 14 Energy Capacity 265 Matter Stores 300 Matter Capacity 300 Sight Range 16 Terrain Scan Density 10 Armor Coverage 675 Evasion (%) 55 Item Schematics ----------------- None Robot Schematics ------------------ None Fabricated ------------ Nothing Alien Tech Used ----------------- None Achievements -------------- None Challenges ------------ None Game ------ Seed SegregatorWardroneDiverter Manual? 0 Play Time 00:19:51 Cumulative 8.0 hours Start 2024.03.10 @ 14:58:28 End 2024.03.10 @ 15:18:34 Sessions 1 Manual Loads 0 Difficulty Rogue Special Mode None Game No. 21 Rogue 21 Adventurer 0 Explorer 0 Win Type - Total 0 Types 0/0/0/0/0/0/0/0/0 Lore% 10 Gallery% 13 Achievement% 10 Wizard Run 0 Options --------- Layout 1 ASCII 0 Keyboard 0 Movement Arrows Keybinds 0 Fullscreen 1 Font 16/Terminus Map View 25x20 Zoom Use 80% Tactical HUD 0 Map Filters NONE Filters NONE Steam 1 RUN: 7f91ff95-891b-4002-a82c-f3e95b734839